bitfinex/quotes_ETHUSD_20250222
["timestamp","ask_amount","ask_price","bid_price","bid_amount"]
[1740209611847,9.82317,2691.9,2691.5,0.05142731]
[1740209612054,3.71499,2691.8,2691.5,0.05142731]
[1740209613830,9.8232,2691.9,2691.5,0.05142731]
[1740209614028,9.50098088,2691.9,2691.5,0.05142731]
[1740209614344,5.78608088,2691.9,2691.5,3.76680731]
[1740209614542,5.32,2691.9,2691.5,3.76680731]
[1740209615245,5.32,2691.9,2691.4,3.97943]
[1740209615551,9.03491,2691.9,2691.5,0.05178228]
[1740209615753,3.71506,2691.8,2691.5,0.05178228]
[1740209616821,3.71518,2691.7,2691.5,0.05178228]
[1740209618051,0.7698,2691.8,2691.5,0.05178228]
[1740209618357,3.71518,2691.7,2691.5,0.05178228]
[1740209618867,7.4304,2691.7,2691.5,0.05178228]
[1740209619162,3.71526,2691.6,2691.5,0.05178228]
[1740209619693,3.71518,2691.7,2691.5,0.05178228]
[1740209619862,5.388291,2691.8,2691.5,0.05178228]
[1740209620062,4.618491,2691.8,2691.5,0.05178228]
[1740209620464,9.03488,2691.9,2691.5,0.05178228]
[1740209620659,5.32,2691.9,2691.5,3.76709228]
[1740209621272,5.32,2691.9,2691.5,0.05178228]
[1740209621431,5.32,2691.9,2691.5,3.76711228]
[1740209622869,5.32,2691.9,2691.7,3.715]
[1740209623368,5.32,2691.9,2691.8,0.05178228]
[1740209623779,5.32,2691.9,2691.7,3.715]
[1740209623984,5.32,2691.9,2691.8,0.05178228]
[1740209624344,3.7146,2692.1,2691.6,3.71523]
[1740209624886,3.7146,2692.1,2691.7,0.05141364]
[1740209627390,4.4854,2692.1,2691.7,0.05141364]
[1740209628182,3.71473,2692.0,2691.7,0.05141364]
[1740209628384,3.71473,2692.0,2691.5,0.28313102]
[1740209628745,3.71473,2692.0,2691.6,0.05141364]
[1740209628945,3.71498,2691.8,2691.6,0.05141364]
[1740209629258,7.43007,2691.8,2691.4,0.264]
[1740209629447,7.43007,2691.8,2691.5,0.05141364]
[1740209630086,3.71498,2691.8,2691.5,0.05141364]
[1740209630256,3.7152,2691.7,2691.5,0.05141364]
[1740209631194,3.71522,2691.7,2691.5,0.05141364]
[1740209631718,7.42984,2691.9,2691.5,0.05141364]
[1740209632020,3.71486,2691.9,2691.6,0.264]
[1740209632173,3.71486,2691.9,2691.7,0.05141364]
[1740209632917,5.32,2692.0,2691.7,0.05141364]
[1740209634187,3.71498,2691.8,2691.7,0.05141364]
[1740209636620,6.0908,2692.0,2691.7,0.05141364]
[1740209636777,6.0908,2692.0,2691.6,0.264]
[1740209636778,10.41466,2692.0,2691.6,0.264]
[1740209636973,3.71484,2691.9,2691.7,0.05141364]
[1740209637180,9.80551,2692.0,2691.7,0.05141364]
[1740209637419,3.71485,2691.9,2691.7,0.05141364]
[1740209638411,5.32,2692.0,2691.7,0.05141364]
[1740209638617,9.03471,2692.0,2691.7,0.05141364]
[1740209639108,12.74952,2692.0,2691.7,0.05141364]
[1740209639305,9.03471,2692.0,2691.7,0.05141364]
[1740209639827,3.7149,2691.9,2691.7,0.05141364]
[1740209640411,3.71494,2691.9,2691.7,0.05141364]
[1740209640808,9.03477,2692.0,2691.7,0.05141364]
[1740209641129,12.74961,2692.0,2691.7,0.05141364]
[1740209641287,12.74956,2692.0,2691.7,0.05141364]
[1740209641486,5.32,2692.0,2691.7,0.05141364]
[1740209641709,9.03474,2692.0,2691.7,0.05141364]
[1740209642023,5.32,2692.0,2691.7,0.05141364]
[1740209642249,3.71492,2691.9,2691.6,0.264]
[1740209642403,3.71473,2692.0,2691.7,0.0494341]
[1740209643218,3.71456,2692.2,2691.7,3.7645441]
[1740209643423,3.71449,2692.2,2691.7,0.0494341]
[1740209643808,3.71463,2692.1,2691.7,0.0494341]
[1740209645609,3.71449,2692.2,2691.7,3.7645241]
[1740209648659,6.1168,2692.3,2691.8,3.71497]
[1740209648859,5.32,2692.3,2691.9,3.71477]
[1740209649154,3.71418,2692.4,2692.0,0.0494341]
[1740209649360,4.49682,2692.5,2692.0,0.0494341]
[1740209649539,3.71416,2692.4,2692.0,0.0494341]
[1740209649811,3.71412,2692.5,2692.0,3.7641341]
[1740209649954,3.71412,2692.5,2692.0,0.0494341]
[1740209650266,0.7827,2692.7,2692.0,0.0494341]
[1740209650468,0.7827,2692.7,2691.6,3.264]
[1740209650469,3.71395,2692.6,2692.1,3.71446]
[1740209650656,0.7827,2692.7,2692.3,3.71421]
[1740209650850,12.74731,2692.8,2692.4,0.3132567]
[1740209651021,11.265601,2692.8,2692.4,0.3132567]
[1740209651574,7.552001,2692.8,2692.4,0.3132567]
[1740209651728,5.32,2692.8,2692.4,0.3132567]
[1740209651928,9.03365,2692.8,2692.4,0.3132567]
[1740209652157,5.32,2692.8,2692.4,0.3132567]
[1740209652362,5.32,2692.8,2692.5,3.71394]
[1740209652521,0.7827,2693.0,2692.5,7.42788]
[1740209652721,0.7827,2693.2,2692.8,3.71348]
[1740209652969,3.71292,2693.3,2692.8,3.71348]
[1740209653177,6.1027,2693.4,2692.9,3.76173796]
[1740209653383,0.7827,2693.7,2692.9,3.76173796]
[1740209653586,4.39297,2693.7,2692.9,3.76167796]
[1740209653748,3.71285,2693.4,2692.9,3.76167796]
[1740209654085,3.71306,2693.2,2692.9,0.04828796]
[1740209654233,3.71306,2693.2,2693.0,0.264]
[1740209654234,3.71327,2693.1,2693.0,0.264]
[1740209654434,3.71327,2693.1,2693.0,0.31181054]
[1740209654681,3.71327,2693.1,2693.0,0.04781054]
[1740209654847,3.71327,2693.1,2693.0,0.264]
[1740209655045,3.7137,2692.8,2692.5,9.42e-06]
[1740209655234,3.7137,2692.8,2692.1,3.71456]
[1740209655434,3.71409,2692.5,2692.2,0.264]
[1740209655939,3.71429,2692.3,2692.2,0.264]
[1740209657888,4.49686,2692.4,2692.2,0.264]
[1740209658483,3.71416,2692.4,2692.2,0.264]
[1740209658786,3.71404,2692.5,2692.2,0.264]
[1740209659281,3.71409,2692.5,2692.2,0.264]
[1740209659635,3.71412,2692.5,2692.2,0.264]
[1740209660555,3.7141,2692.5,2692.2,0.264]
[1740209660971,3.71419,2692.4,2692.2,0.264]
[1740209663172,4.54678,2692.6,2692.2,0.264]
[1740209663490,3.71405,2692.5,2692.2,0.264]
[1740209664097,3.71385,2692.7,2692.2,3.97834]
[1740209664259,3.71385,2692.7,2692.2,0.264]
[1740209664464,3.71385,2692.7,2692.2,0.38025648]
[1740209664666,3.71385,2692.7,2692.3,3.71426]
[1740209664985,5.32,2692.8,2692.3,3.71426]
[1740209665495,9.03367,2692.8,2692.3,3.71426]
[1740209665690,9.03367,2692.8,2692.2,0.38025648]
[1740209665691,3.71374,2692.7,2692.4,0.11625648]
[1740209665884,3.71395,2692.6,2692.4,0.11625648]
[1740209666086,3.71374,2692.7,2692.4,0.11625648]
[1740209667296,3.71374,2692.7,2692.3,3.71428]
[1740209668288,3.71374,2692.7,2692.2,3.97841]
[1740209668468,3.7138,2692.7,2692.2,0.264]
[1740209668882,3.7138,2692.7,2692.3,0.11624496]
[1740209669535,3.71396,2692.6,2692.3,0.11624496]
[1740209670215,3.7138,2692.7,2692.3,0.11624496]
[1740209670397,3.7138,2692.7,2692.3,3.83053496]
[1740209670786,3.7138,2692.7,2692.4,0.11624496]
[1740209671189,3.7138,2692.7,2692.5,0.04567904]
[1740209671404,7.42767,2692.7,2692.5,0.04567904]
[1740209672021,6.1427,2692.8,2692.5,0.04567904]
[1740209672206,3.71383,2692.7,2692.5,0.161924]
[1740209672408,3.71388,2692.6,2692.5,0.11624496]
[1740209673406,3.71436,2692.3,2692.0,0.11624496]
[1740209673589,3.71436,2692.3,2692.1,0.264]
[1740209674423,3.71436,2692.3,2692.2,0.11624496]
[1740209674905,3.71436,2692.3,2692.2,0.38024496]
[1740209675423,3.71467,2692.1,2691.9,0.11624496]
[1740209675623,3.71467,2692.1,2692.0,0.264]
[1740209675917,3.71446,2692.2,2692.0,0.264]
[1740209678032,3.71443,2692.3,2692.0,0.264]
[1740209678234,7.42881,2692.3,2692.0,0.264]
[1740209678439,3.71439,2692.3,2692.0,0.264]
[1740209678741,3.71443,2692.2,2692.1,0.11626488]
[1740209679237,3.71443,2692.2,2692.1,0.38026488]
[1740209680027,3.71443,2692.2,2692.1,0.264]
[1740209680395,3.71465,2692.1,2691.7,0.11626488]
[1740209680600,3.71477,2692.0,2691.8,0.264]
[1740209681300,3.71457,2692.1,2691.9,0.11626488]
[1740209682235,3.71457,2692.1,2692.0,0.11626488]
[1740209682834,3.71443,2692.2,2692.0,0.46355269]
[1740209683633,7.4287,2692.3,2692.0,0.34728781]
[1740209683816,3.71431,2692.3,2692.0,0.34728781]
[1740209684019,4.53692,2692.4,2692.0,0.34728781]
[1740209684193,3.71422,2692.4,2691.9,3.71477]
[1740209684389,7.42823,2692.5,2691.9,3.71476]
[1740209685524,3.71424,2692.4,2691.9,3.71476]
[1740209685690,3.71436,2692.3,2692.0,0.11626258]
[1740209686090,7.46868,2692.6,2692.1,0.046538]
[1740209686340,7.46868,2692.6,2692.0,0.11626258]
[1740209686341,3.71402,2692.5,2692.0,0.11626258]
[1740209686535,3.71402,2692.5,2692.1,0.34751246]
[1740209686840,3.71402,2692.5,2692.1,0.39405046]
[1740209687041,3.71402,2692.5,2692.2,0.11626258]
[1740209687540,3.71402,2692.5,2692.3,0.046538]
[1740209687920,3.71402,2692.5,2692.2,0.11626258]
[1740209688436,7.46868,2692.6,2692.3,0.046538]
[1740209688601,8.80503663,2692.6,2692.0,3.7147]
[1740209688805,3.7547,2692.6,2692.1,0.046538]
[1740209689005,3.7547,2692.6,2692.1,3.71455]
[1740209689224,0.7547,2692.6,2692.2,0.046538]
[1740209689818,0.7547,2692.6,2692.2,0.3939764]
[1740209690642,0.7547,2692.6,2692.3,0.11625145]
[1740209691045,0.7547,2692.6,2692.4,0.0461426]
[1740209691244,9.03374,2692.7,2692.3,0.46368985]
[1740209691449,9.03374,2692.7,2692.4,0.0461426]
[1740209692221,4.46872,2692.5,2692.4,0.0461426]
[1740209692545,3.71415,2692.4,2692.3,0.3474384]
[1740209692750,3.71415,2692.4,2691.8,5.095184]
[1740209692961,3.71415,2692.4,2692.3,0.0461426]
[1740209693433,3.71415,2692.4,2691.9,0.11626204]
[1740209693638,3.71415,2692.4,2692.0,0.0461426]
[1740209693839,3.71443,2692.3,2692.0,0.0461426]
[1740209694036,3.71443,2692.3,2692.1,0.264]
[1740209694429,3.71443,2692.3,2692.2,0.04576083]
[1740209696256,4.46913,2692.3,2692.2,0.04576083]
[1740209696628,0.7547,2692.3,2691.5,1.116462]
[1740209696826,3.71483,2692.0,2691.6,0.264]
[1740209697137,3.71483,2692.0,2691.6,0.30845868]
[1740209697660,0.7823,2691.9,2691.7,0.46403096]
[1740209697957,4.49724,2691.9,2691.8,0.264]
[1740209698155,4.49724,2691.9,2691.8,0.30845868]
[1740209698671,0.7823,2691.9,2691.8,0.30845868]
[1740209698874,4.49714,2691.9,2691.8,0.4247352]
[1740209699175,4.49714,2691.9,2691.8,0.77248964]
[1740209700476,0.7823,2691.9,2691.8,0.77248964]
[1740209700771,3.71472,2692.0,2691.8,0.77248964]
[1740209701401,3.71472,2692.0,2691.8,0.65621312]
[1740209701540,3.71472,2692.0,2691.8,0.30845868]
[1740209701737,4.49697,2692.1,2691.8,0.30845868]
[1740209702555,4.49697,2692.1,2691.9,0.11627678]
[1740209703041,4.49697,2692.1,2692.0,0.04489484]
[1740209704049,6.15011,2692.1,2692.0,0.04489484]
[1740209704237,6.13531,2692.1,2692.0,0.04489484]
[1740209704441,4.48234,2691.9,2691.8,0.264]
[1740209704666,4.48234,2691.9,2691.8,0.30879942]
[1740209704884,4.48234,2691.9,2691.8,0.04479942]
[1740209705076,1.752521,2691.9,2691.0,3.71606942]
[1740209705399,3.71539,2691.6,2691.5,0.264]
[1740209705980,3.71539,2691.6,2691.5,0.30879942]
[1740209706716,3.71539,2691.6,2691.5,0.65662252]
[1740209706870,3.71539,2691.6,2691.5,0.39262252]
[1740209707204,3.71539,2691.6,2691.5,0.7729085]
[1740209707600,3.71508,2691.8,2691.5,0.7729085]
[1740209708110,3.71514,2691.7,2691.5,0.7729085]
[1740209708401,5.467471,2691.9,2691.5,0.7729085]
[1740209708609,3.71502,2691.8,2691.5,0.7729085]
[1740209708904,4.7937741,2691.8,2691.5,0.39262252]
[1740209709095,3.7152,2691.7,2691.6,0.3478231]
[1740209709405,3.71502,2691.8,2691.6,0.3478231]
[1740209709601,3.71502,2691.8,2691.6,0.39335859]
[1740209709809,4.48242,2691.9,2691.6,0.39335859]
[1740209710315,5.32,2692.0,2691.7,3.7151]
[1740209710691,6.7143,2692.3,2691.8,0.04553549]
[1740209710883,6.7143,2692.3,2691.7,3.7151]
[1740209711389,3.7143,2692.3,2691.8,3.76050549]
[1740209711585,6.0875,2692.4,2691.9,3.71484]
[1740209711798,0.7675,2692.6,2692.0,3.71462]
[1740209712111,3.7675,2692.6,2691.8,0.34738617]
[1740209712317,3.71443,2692.2,2692.1,0.11626149]
[1740209712812,3.71443,2692.2,2692.1,0.16179698]
[1740209713000,3.71443,2692.3,2692.1,0.16179698]
[1740209713416,4.09087,2692.5,2692.1,0.16179698]
[1740209713707,4.09087,2692.5,2692.1,0.04553549]
[1740209714209,3.71412,2692.5,2692.1,0.04553549]
[1740209714414,3.71412,2692.5,2692.1,1.16189549]
[1740209714815,3.71384,2692.7,2692.1,1.16189549]
[1740209715111,3.71384,2692.7,2692.1,8.70709698]
[1740209715283,3.71384,2692.7,2692.1,8.66156149]
[1740209715482,0.7675,2692.8,2692.2,3.75995549]
[1740209715483,4.48117,2692.8,2692.2,3.75995549]
[1740209716027,3.71395,2692.6,2692.2,0.04553549]
[1740209716310,0.7675,2692.8,2692.3,0.11626149]
[1740209716311,4.48124,2692.8,2692.3,0.11626149]
[1740209716992,4.48124,2692.8,2692.4,0.04553549]
[1740209717187,3.71374,2692.8,2692.4,0.04553549]
[1740209717501,9.03356,2692.9,2692.4,0.3927145]
[1740209717675,5.32,2692.9,2692.6,3.71387]
[1740209717879,12.50305,2693.3,2692.7,0.264]
[1740209717880,4.54345,2693.3,2692.7,0.264]
[1740209718306,4.54345,2693.3,2692.8,0.04553549]
[1740209718702,4.54345,2693.3,2692.7,0.264]
[1740209718892,4.5431,2693.5,2692.8,3.71348]
[1740209719094,3.8304,2693.5,2692.9,0.34717901]
[1740209719290,3.71331,2693.1,2692.9,0.34717901]
[1740209719695,3.71331,2693.1,2693.0,0.04553549]
[1740209720411,4.54371,2693.1,2693.0,0.30953549]
[1740209721419,4.54371,2693.1,2693.0,0.264]
[1740209722002,4.54371,2693.1,2693.0,0.30802277]
[1740209725649,5.369387,2693.1,2693.0,0.04402277]
[1740209725852,13.681987,2693.1,2693.0,2.77e-06]
[1740209726143,7.53674,2692.7,2692.6,0.46340403]
[1740209726342,12.85674,2692.7,2692.6,0.46340403]
[1740209726514,13.42325972,2692.7,2692.6,0.49958181]
[1740209727011,13.42325972,2692.7,2692.6,0.1524028]
[1740209727313,3.71457,2692.1,2692.0,7.853]
[1740209727520,3.71457,2692.1,2692.0,7.88917778]
[1740209729638,3.71457,2692.1,2692.0,0.30017778]
[1740209732335,3.71457,2692.1,2692.0,0.37279273]
[1740209734039,3.71457,2692.1,2692.0,0.10879273]
[1740209742189,3.71444,2692.2,2692.0,0.10879273]
[1740209742884,3.71424,2692.4,2692.0,0.10879273]
[1740209743239,7.42849,2692.4,2692.0,0.10879273]
[1740209743534,3.71395,2692.6,2692.0,3.82343273]
[1740209743822,3.71413,2692.5,2692.0,0.10879273]
[1740209744722,3.71413,2692.5,2692.0,0.2250691]
[1740209744925,7.42827,2692.5,2692.0,0.2250691]
[1740209745073,3.71416,2692.4,2692.0,0.2250691]
[1740209745420,3.71413,2692.5,2692.0,0.2250691]
[1740209745626,7.42825,2692.5,2692.0,0.2250691]
[1740209745915,3.71412,2692.5,2692.0,0.2250691]
[1740209746307,3.71391,2692.6,2692.1,3.71451]
[1740209746675,3.71391,2692.6,2692.2,0.10976025]
[1740209746871,5.32,2692.7,2692.2,0.10976025]
[1740209747179,3.71357,2692.9,2692.2,1.22598825]
[1740209747405,3.71381,2692.7,2692.2,1.22598825]
[1740209747920,3.71381,2692.7,2692.2,5.05665462]
[1740209748794,3.71381,2692.7,2692.2,1.34226462]
[1740209748998,3.71388,2692.6,2692.2,1.22598825]
[1740209750411,3.71372,2692.8,2692.2,4.94039825]
[1740209750621,3.71378,2692.7,2692.2,4.94039825]
[1740209751971,3.71378,2692.7,2692.3,0.11625085]
[1740209752171,3.71388,2692.6,2692.4,0.10939225]
[1740209752983,3.71372,2692.8,2692.4,0.10939225]
[1740209753328,3.71347,2692.9,2692.4,3.82353225]
[1740209753678,3.0,2693.0,2692.5,3.83025085]
[1740209753929,3.0,2693.0,2692.5,0.22515246]
[1740209755112,3.71333,2693.0,2692.5,0.22515246]
[1740209755317,3.7132,2693.1,2692.5,3.93916246]
[1740209755630,3.7131,2693.2,2692.7,3.71372]
[1740209755831,3.71301,2693.3,2692.8,0.264]
[1740209756127,3.71319,2693.1,2692.8,0.37290161]
[1740209757629,3.71301,2693.3,2692.8,0.37290161]
[1740209757827,3.71313,2693.2,2692.8,0.37290161]
[1740209758125,3.71319,2693.1,2692.8,0.264]
[1740209758435,3.71319,2693.1,2692.9,0.10875172]
[1740209759189,3.71319,2693.1,2692.8,0.264]
[1740209759389,3.71319,2693.1,2692.9,0.10875172]
[1740209759805,3.71301,2693.3,2692.9,0.10875172]
[1740209760012,3.71307,2693.2,2692.9,0.10875172]
[1740209760621,7.4262,2693.2,2692.9,0.10875172]
[1740209760827,3.71327,2693.1,2692.9,0.10875172]
[1740209762225,3.71307,2693.2,2692.9,0.10875172]
[1740209764788,3.71324,2693.1,2692.9,0.10875172]
[1740209765631,3.71293,2693.3,2692.9,0.10875172]
[1740209765931,3.71294,2693.3,2692.9,0.10875172]
[1740209766135,3.71307,2693.2,2692.8,0.264]
[1740209766302,3.71307,2693.2,2693.0,0.10832929]
[1740209766502,3.71296,2693.3,2692.8,3.97758]
[1740209766715,3.71296,2693.3,2693.1,0.10832929]
[1740209766919,3.71313,2693.2,2692.8,0.264]
[1740209767229,3.7132,2693.1,2692.8,0.264]
[1740209767931,0.7659,2693.2,2692.8,0.264]
[1740209768133,3.71335,2693.0,2692.8,0.264]
[1740209768533,3.71346,2692.9,2692.8,0.264]
[1740209769529,3.71335,2693.0,2692.8,0.264]
[1740209770064,7.42681,2693.0,2692.8,0.264]
[1740209770232,3.71335,2693.0,2692.8,0.264]
[1740209770409,3.7132,2693.1,2692.8,0.264]
[1740209771334,3.71292,2693.3,2692.8,0.264]
[1740209771637,3.71309,2693.2,2692.8,0.264]
[1740209771838,3.71294,2693.3,2692.8,3.97755]
[1740209771993,3.71294,2693.3,2692.8,0.264]
[1740209771994,7.42596,2693.3,2692.8,0.264]
[1740209772196,8.36665,2693.3,2692.8,0.264]
[1740209772633,3.71305,2693.2,2692.9,0.1162309]
[1740209774544,1.21504,2693.5,2692.8,0.264]
[1740209774703,3.71271,2693.5,2692.9,3.71336]
[1740209775057,3.71266,2693.5,2693.0,3.71333]
[1740209775244,3.71222,2693.8,2693.1,3.71318]
[1740209775433,3.71245,2693.7,2693.3,3.7129]
[1740209775747,0.7659,2694.1,2692.9,0.55000942]
[1740209775948,3.71191,2694.1,2693.5,3.71259]
[1740209776237,3.71196,2694.0,2693.6,0.36809107]
[1740209776814,3.71172,2694.2,2693.6,4.08057107]
[1740209777220,3.7119,2694.1,2693.6,4.08057107]
[1740209777642,3.7119,2694.1,2693.7,0.11621097]
[1740209777844,0.7659,2694.3,2693.7,0.11621097]
[1740209778023,3.71145,2694.4,2693.8,3.71214]
[1740209778347,3.71154,2694.3,2693.8,3.81623107]
[1740209778519,3.71154,2694.3,2693.8,0.10409107]
[1740209778930,3.7114,2694.4,2693.8,7.42429]
[1740209779140,3.7114,2694.4,2693.9,0.10409107]
[1740209779707,3.7114,2694.4,2693.9,3.81617107]
[1740209779909,3.7114,2694.4,2693.9,0.10409107]
[1740209780110,3.71169,2694.2,2693.9,0.10409107]
[1740209780311,3.71169,2694.2,2693.7,0.11621097]
[1740209780519,3.71169,2694.2,2694.0,0.10409107]
[1740209780721,0.7622,2694.9,2693.9,3.71199]
[1740209780928,0.7622,2694.9,2694.1,0.10409107]
[1740209781234,7.42214,2694.7,2694.2,0.10151705]
[1740209781452,3.71106,2694.7,2694.2,0.10151705]
[1740209783375,3.71089,2694.8,2694.3,3.7115]
[1740209783531,3.71089,2694.8,2694.4,0.264]
[1740209783729,3.71085,2694.8,2694.4,0.264]
[1740209783952,3.71085,2694.8,2694.5,0.10151705]
[1740209785168,3.71098,2694.7,2694.5,0.10151705]
[1740209786574,3.71098,2694.7,2694.6,0.264]
[1740209787067,3.71098,2694.7,2694.6,0.36551705]
[1740209787589,3.71098,2694.7,2694.6,0.264]
[1740209787942,3.71098,2694.7,2694.6,0.36551705]
[1740209788586,3.71092,2694.8,2694.6,0.36551705]
[1740209788895,3.71072,2694.9,2694.6,0.36551705]
[1740209789293,3.71055,2695.1,2694.6,0.36551705]
[1740209789451,4.4956,2695.2,2694.6,0.36551705]
[1740209789658,3.71058,2695.0,2694.6,0.36551705]
[1740209790060,0.7852,2695.2,2694.6,0.36551705]
[1740209790257,3.71031,2695.2,2694.7,3.71088]
[1740209790484,3.71031,2695.2,2694.6,4.07653705]
[1740209790485,3.71025,2695.3,2694.8,3.71084]
[1740209790702,3.71004,2695.4,2694.9,3.71062]
[1740209791305,3.71004,2695.4,2695.0,0.09932236]
[1740209791987,4.49509,2695.5,2695.0,3.80985236]
[1740209792167,3.71013,2695.4,2694.8,3.71071]
[1740209792371,3.71013,2695.4,2695.1,0.09441183]
[1740209792690,3.71013,2695.4,2695.2,0.09441183]
[1740209792887,3.71013,2695.4,2694.9,3.71069]
[1740209793074,3.71013,2695.4,2695.3,0.09441183]
[1740209793274,3.71013,2695.4,2694.9,3.71063]
[1740209793460,3.70989,2695.5,2695.3,0.09441183]
[1740209793661,3.70989,2695.5,2695.4,0.264]
[1740209793876,3.70989,2695.5,2695.4,0.35841183]
[1740209794174,3.70989,2695.5,2695.4,0.264]
[1740209796362,3.70988,2695.5,2695.4,0.264]
[1740209797207,3.70988,2695.5,2695.4,0.35796301]
[1740209800915,3.70988,2695.5,2695.4,0.264]
[1740209801914,3.70988,2695.5,2695.4,0.35796301]
[1740209805265,3.70982,2695.6,2695.4,0.35796301]
[1740209805698,3.70988,2695.5,2695.4,0.35796301]
[1740209822239,3.70988,2695.5,2695.4,0.47409024]
[1740209826862,3.70975,2695.6,2695.4,0.47409024]
[1740209827160,3.70988,2695.5,2695.4,0.47409024]
[1740209827761,4.51577,2695.9,2695.4,4.18405024]
[1740209827984,3.70919,2696.0,2695.6,3.70973]
[1740209828143,3.70919,2696.0,2695.4,4.18405024]
[1740209828144,3.70937,2695.9,2695.4,4.09008723]
[1740209828463,3.70947,2695.8,2695.4,0.38012723]
[1740209828668,3.70947,2695.8,2695.5,0.09401741]
[1740209828826,3.70947,2695.8,2695.7,0.11612723]
[1740209829171,3.70919,2696.0,2695.7,0.11612723]
[1740209829336,3.70919,2696.0,2695.7,0.21014464]
[1740209829544,3.70947,2695.8,2695.7,0.11612723]
[1740209830767,0.38759754,2697.6,2695.7,0.11612723]
[1740209830936,3.70737,2697.4,2696.7,3.0]
[1740209831144,0.7844,2697.7,2697.0,3.70781]
[1740209831326,4.49111,2697.9,2697.3,3.70729]
[1740209831654,0.7844,2697.9,2697.5,3.707]
[1740209831842,0.7844,2698.3,2697.6,3.97386]
[1740209832036,0.7844,2698.3,2697.6,0.267]
[1740209832241,0.7844,2698.3,2697.7,3.70682]
[1740209832625,0.005,2698.4,2697.7,0.55]
[1740209832830,0.005,2698.4,2698.1,3.7063]
[1740209833043,0.005,2698.4,2698.3,3.70603]
[1740209833634,0.005,2698.4,2698.3,3.97303]
[1740209834257,0.005,2698.4,2698.3,0.267]
[1740209835685,3.71089,2698.4,2698.3,0.267]
[1740209836073,3.71089,2698.4,2698.3,0.34934783]
[1740209837589,0.005,2698.4,2698.3,0.34934783]
[1740209838955,3.71089,2698.4,2698.3,0.34934783]
[1740209839153,0.005,2698.4,2698.3,0.34934783]
[1740209839669,3.71089,2698.4,2698.3,0.34934783]
[1740209841736,3.71089,2698.4,2698.3,0.08234783]
[1740209841986,4.51879,2698.4,2698.3,0.267]
[1740209842952,4.51879,2698.4,2697.6,1.11377542]
[1740209843267,3.70673,2697.8,2697.7,0.34949696]
[1740209843639,3.70673,2697.8,2697.7,0.08249696]
[1740209843837,3.70673,2697.8,2697.7,0.267]
[1740209844034,4.46113,2697.8,2697.7,0.08020684]
[1740209847589,3.70713,2697.5,2697.4,0.267]
[1740209849041,3.70741,2697.3,2697.2,7.573]
[1740209849241,3.70741,2697.3,2697.2,7.84]
[1740209850995,0.7544,2697.8,2697.2,7.9135402]
[1740209851135,3.707,2697.6,2697.2,7.9135402]
[1740209851659,3.70686,2697.7,2697.2,11.6210102]
[1740209851983,3.707,2697.6,2697.2,7.9135402]
[1740209852344,3.70686,2697.7,2697.2,7.9135402]
[1740209852741,3.70703,2697.6,2697.2,7.9135402]
[1740209853190,3.70728,2697.4,2697.2,7.9135402]
[1740209853891,3.70709,2697.6,2697.2,7.9135402]
[1740209854060,3.70718,2697.5,2697.2,7.9135402]
[1740209854257,0.7544,2697.8,2697.2,7.9135402]
[1740209854476,3.70682,2697.8,2697.3,3.70732]
[1740209854643,3.70713,2697.5,2697.4,0.07339096]
[1740209854843,3.70713,2697.5,2697.2,7.84]
[1740209855143,3.70736,2697.4,2697.3,0.07339096]
[1740209855581,3.70736,2697.4,2697.2,7.84]
[1740209855776,3.70741,2697.3,2697.2,7.84]
[1740209856265,3.70741,2697.3,2697.2,0.267]
[1740209861738,3.70782,2697.0,2696.9,0.11605028]
[1740209862033,3.70782,2697.0,2696.9,0.267]
[1740209865200,3.70857,2696.5,2696.3,0.11607662]
[1740209865402,3.70857,2696.5,2696.4,0.267]
[1740209865627,3.70857,2696.5,2696.4,0.33801697]
[1740209865996,3.70857,2696.5,2696.4,0.07101697]
[1740209866518,3.70878,2696.3,2696.2,0.11607662]
[1740209866700,3.70878,2696.3,2696.2,0.38307662]
[1740209868497,3.70878,2696.3,2696.2,0.38207662]
[1740209868731,3.70878,2696.3,2696.2,0.11607662]
[1740209868916,4.49468,2696.3,2696.2,0.38207662]
[1740209869103,4.49468,2696.3,2696.2,0.11607662]
[1740209869310,3.70878,2696.3,2696.2,0.11607662]
[1740209869731,3.70878,2696.3,2696.1,7.574]
[1740209869934,3.70892,2696.2,2696.1,7.574]
[1740209870631,3.70874,2696.4,2696.1,7.574]
[1740209871522,3.7086,2696.5,2696.1,7.574]
[1740209871714,3.70858,2696.5,2696.1,7.574]
[1740209872525,3.70831,2696.7,2696.2,0.55]
[1740209872702,3.70814,2696.8,2696.2,0.55]
[1740209872901,3.70814,2696.8,2696.3,3.70878]
[1740209873511,3.70834,2696.7,2696.2,0.55]
[1740209874136,3.70814,2696.8,2696.2,0.55]
[1740209874341,3.70823,2696.7,2696.2,0.55]
[1740209874837,3.70823,2696.7,2696.3,0.11607925]
[1740209875002,3.70814,2696.8,2696.3,0.11607925]
[1740209875407,3.70828,2696.7,2696.3,0.11607925]
[1740209875611,3.70814,2696.8,2696.3,0.11607925]
[1740209875844,3.70837,2696.6,2696.3,0.11607925]
[1740209876051,3.70814,2696.8,2696.3,0.11607925]
[1740209876447,3.70814,2696.8,2696.3,3.82485925]
[1740209876651,3.70826,2696.7,2696.3,0.11607925]
[1740209876955,3.70826,2696.7,2696.3,3.82483925]
[1740209877135,7.41602,2696.9,2696.3,3.82483925]
[1740209877337,3.70823,2696.8,2696.3,0.11607925]
[1740209877546,3.70826,2696.7,2696.3,0.11607925]
[1740209878355,3.70826,2696.7,2696.2,4.25881]
[1740209878564,3.70823,2696.8,2696.2,0.55]
[1740209878718,3.70823,2696.8,2696.3,3.70877]
[1740209879655,3.70826,2696.7,2696.2,0.83100407]
[1740209880149,3.70823,2696.8,2696.2,4.53987407]
[1740209880359,3.70825,2696.7,2696.2,4.53987407]